Cogmind - Beta 15 @@@ ROGUE MODE // 2025.09.29 @ 17:42:43 Player: GR4C3 Result: Destroyed by G-47 Trooper with Particle Gun Performance ------------- Evolutions (2) 1000 Regions Visited (7) 1400 Robots Destroyed (31) 155 Value Destroyed (881) 881 Prototype IDs (25) 500 Alien Tech Used (0) 0 Bonus (300) 300 TOTAL SCORE: 4236 Bonus ------- Aligned with FarCom 300 Cogmind --------- Core Integrity 0/550 Matter 235/300 Energy 30/100 System Corruption 3% Temperature Cool (27) Movement Core (50) Location -8/Materials Parts ------- > --- POWER (2) -------- (None) > --- PROPULSION (4) --- (None) > --- UTILITY (3) ------ Advanced Visual Processing Unit Signal Interpreter Skeleton Box > --- WEAPON (2) ------- (None) > --- INVENTORY (5) ---- Improved Terrain Scanner Peak State ------------ > --- POWER ------------ Improved Ion Engine > --- PROPULSION ------- Airjet Airjet Airjet Airjet > --- UTILITY ---------- Advanced Visual Processing Unit Signal Interpreter Skeleton Box > --- WEAPON ----------- Improved EM Shotgun Improved Assault Rifle > --- INVENTORY -------- Improved Terrain Scanner Particle Gun Grenade Launcher Grenade Launcher Improved Grenade Launcher [Rating: 31] Favorites ----------- Power Improved Ion Engine Engine Improved Ion Engine Propulsion Airjet Leg Aluminum Leg Hover Unit Airjet Utility Visual Processing Unit Device Improved Terrain Scanner Storage Small Storage Unit Processor Visual Processing Unit Weapon Improved EM Shotgun Energy Gun Improved EM Shotgun Energy Cannon EM Pulse Cannon Ballistic Gun Assault Rifle Ballistic Cannon Assault Cannon Launcher Grenade Launcher Build | -11 -10 -10 -9 -9 -9 -8 -8 ------- Run | Yrd Mat Min Mat Min Exi Min Mat Slots Evolved 4 | . . . 2 . . . 2 Power 1 | . . . . . . . 1 Propulsion 2 | . . . 1 . . . 1 Utility 1 | . . . 1 . . . . Weapon . | . . . . . . . . Parts Attached 33 | 7 2 2 12 . 2 1 7 Power 5 | 1 1 1 1 . . . 1 Engine 5 | 1 1 1 1 . . . 1 Core . | . . . . . . . . Reactor . | . . . . . . . . Propulsion 10 | 2 . . 6 . . . 2 Treads . | . . . . . . . . Leg 3 | 2 . . . . . . 1 Wheel . | . . . . . . . . Hover 7 | . . . 6 . . . 1 Flight . | . . . . . . . . Utility 7 | 2 1 . 1 . 2 1 . Device 3 | 1 . . 1 . 1 . . Storage 1 | 1 . . . . . . . Processor 3 | . 1 . . . 1 1 . Hackware . | . . . . . . . . Protection . | . . . . . . . . Artifact . | . . . . . . . . Weapon 11 | 2 . 1 4 . . . 4 Energy Gun 4 | 1 . 1 2 . . . . Energy Cannon 1 | . . . . . . . 1 Ballistic Gun 2 | 1 . . 1 . . . . Ballistic Cannon 1 | . . . . . . . 1 Launcher 3 | . . . 1 . . . 2 Special Weapon . | . . . . . . . . Impact Weapon . | . . . . . . . . Slashing Weapon . | . . . . . . . . Piercing Weapon . | . . . . . . . . Special Melee Weapon . | . . . . . . . . Unidentified Prototypes 3 | . . . 2 . 1 . . Parts Lost 13 | . . . . . . . 13 Power 2 | . . . . . . . 2 Propulsion 5 | . . . . . . . 5 Utility . | . . . . . . . . Weapon 6 | . . . . . . . 6 Highest Loss Streak 7 | . . . . . . . 7 To Critical Strikes . | . . . . . . . . Average Backups 4 | 2 4 4 4 5 5 5 4 Power . | 1 1 . . . . . . Propulsion . | . . . . 1 1 1 . Utility . | . . . . 1 1 1 1 Weapon 3 | 1 2 3 3 3 3 3 3 Tool/Special . | . . . . . . . . Unused Backups 5 | . 1 1 2 1 . . . Power 1 | . . 1 . . . . . Propulsion 1 | . . . 1 . . . . Utility . | . . . . . . . . Weapon 3 | . 1 . 1 1 . . . Tool/Special . | . . . . . . . . Average Slot Usage (%) 93 | . 100 100 88 100 100 100 78 Engine 10 | . 14 14 11 11 11 11 6 Leg 8 | . 28 28 6 . . . 1 Hover 21 | . . . 23 33 33 33 26 Device 14 | . 14 14 13 22 17 11 9 Processor 13 | . 2 14 11 11 15 22 18 Energy Gun 10 | . 14 14 9 11 11 11 6 Ballistic Gun 5 | . 14 14 11 1 . . 1 Ballistic Cannon 1 | . . . . . . . 5 Launcher 4 | . . . 1 9 11 11 2 Peak Build Rating 31 | 9 10 11 23 23 27 26 31 Average Rating 18 | 6 9 10 17 22 23 25 25 On Entrance 15 | . 9 10 11 23 22 25 26 Naked Turns . | . . . . . . . . Heaviest Build 20 | 15 15 11 15 15 16 15 20 Greatest Support 32 | 20 20 20 24 24 24 24 32 Greatest Overweight (x) 6 | . . . 1 . . . 6 Average Overweight (x) . | . . . . . . . . Largest Inventory Capacity 8 | 8 8 5 5 5 5 5 5 Average Capacity 5 | 7 7 5 5 5 5 5 5 Most Carried 7 | 6 7 5 5 5 5 5 5 Average Carried 4 | 2 4 4 4 4 5 5 4 Final Capacity 8 | 8 5 5 5 5 5 5 5 Final Carried 5 | 3 4 4 5 5 5 5 1 Class Distribution -------------------- 95% | Mutant 4% | Scavenger-Mutant Dominant Class ---------------- Mutant | -10/Materials Mutant | -10/Mines Mutant | -9/Materials Mutant | -9/Mines Mutant | -9/Exiles Mutant | -8/Mines Mutant | -8/Materials Resources | -11 -10 -10 -9 -9 -9 -8 -8 ----------- Run | Yrd Mat Min Mat Min Exi Min Mat Matter Collected 729 | 294 38 44 62 136 . 30 125 Remotely . | . . . . . . . . Salvage Created 697 | 79 77 145 62 91 . . 243 Parts 48 | 5 7 11 3 4 . . 18 Haulers Intercepted . | . . . . . . . . Recyclers Shooed 1 | 1 . . . . . . . Parts Field Recycled . | . . . . . . . . Retrieved Matter . | . . . . . . . . Parts Self-Destructed . | . . . . . . . . Prevented . | . . . . . . . . Kills | -11 -10 -10 -9 -9 -9 -8 -8 ------- Run | Yrd Mat Min Mat Min Exi Min Mat Combat Hostiles Destroyed 20 | . 3 5 . 3 . . 9 Guns 9 | . 3 5 . . . . 1 Cannons 2 | . . . . . . . 2 AOE 9 | . . . . 3 . . 6 Classes Destroyed 9 | 2 2 1 . 1 . . 3 Worker 2 | . . . . 1 . . 1 Builder 3 | . . . . . . . 3 Tunneler 1 | 1 . . . . . . . Recycler 1 | 1 . . . . . . . Watcher 4 | . 1 . 3 . . . . Swarmer 6 | . 3 3 . . . . . Grunt 11 | . . 2 . 3 . . 6 Duelist 2 | . . . . . . . 2 Sentry 1 | . . . . . . . 1 Best Kill Streak 8 | 2 3 3 2 4 . . 8 Combat Bots Only 4 | . 3 3 . 3 . . 4 Max Kills in Single Turn 5 | 1 1 2 1 2 . . 5 Gunslinging 1 | . . 1 . . . . . Exploded 2 | . . . . 1 . . 2 Melee . | . . . . . . . . Uniques/NPCs Destroyed . | . . . . . . . . Combat | -11 -10 -10 -9 -9 -9 -8 -8 -------- Run | Yrd Mat Min Mat Min Exi Min Mat Hostile Shots Fired 155 | . 13 17 . 6 . . 119 Missed 50 | . 7 3 . 2 . . 38 Hits 105 | . 6 14 . 4 . . 81 Projectile 105 | . 6 14 . 4 . . 81 Critical Strikes 3 | . . . . . . . 3 Damage Taken 1641 | . 41 118 . 57 . . 1425 Core 577 | . . 23 . . . . 554 Absorbed by Shields . | . . . . . . . . Core Remaining (%) 96 | 100 . 90 . . . 100 . Volleys Fired 52 | 8 6 8 6 4 . . 20 Largest 2 | 2 2 2 2 2 . . 2 Hottest 82 | 70 70 70 73 75 . . 82 Shots Fired 98 | 16 11 16 12 8 . . 35 Gun 73 | 16 11 16 12 4 . . 14 Cannon 14 | . . . . . . . 14 Launcher 11 | . . . . 4 . . 7 Special . | . . . . . . . . Kinetic 43 | 8 6 8 6 . . . 15 Thermal 29 | 8 5 8 6 . . . 2 Explosive 11 | . . . . 4 . . 7 Electromagnetic 15 | . . . . 4 . . 11 Robot Hit Streak 7 | 7 4 4 6 6 . . 7 Robot Miss Streak 5 | 3 5 4 1 1 . . 5 Penetration Max . | . . . . . . . . Secondary Targets 2 | . . 2 . . . . . Max Gunslinging Chain 1 | . . 1 . . . . . Shots Hit Robots 57 | 10 5 9 8 6 . . 19 Core Hits 55 | 3 4 6 3 5 . . 34 Critical Kills . | . . . . . . . . Critical Parts Destroyed . | . . . . . . . . Critical Strikes 3 | . . . 2 . . . 1 Burn 2 | . . . 2 . . . . Blast 1 | . . . . . . . 1 Melee Attacks . | . . . . . . . . Impact . | . . . . . . . . Slashing . | . . . . . . . . Piercing . | . . . . . . . . Sneak Attacks . | . . . . . . . . Combat Hostiles . | . . . . . . . . Follow-up Attacks . | . . . . . . . . Damage Inflicted 2419 | 138 67 111 110 298 . . 1695 Guns 600 | 138 67 111 110 44 . . 130 Cannons 129 | . . . . . . . 129 Explosions 1660 | . . . . 254 . . 1406 Melee . | . . . . . . . . Ramming 30 | . . . . . . . 30 Kinetic 333 | 62 43 48 58 . . . 122 Thermal 529 | 76 24 63 52 . . . 314 Explosive 1346 | . . . . 254 . . 1092 Electromagnetic 181 | . . . . 44 . . 137 Impact . | . . . . . . . . Slashing . | . . . . . . . . Piercing . | . . . . . . . . Highest Corruption 3 | . . . . . . . 3 Average Corruption 2 | . . . . . . . 2 Corruption Purged . | . . . . . . . . Corruption Blocked . | . . . . . . . . Effects 4 | . . . . . . . 4 Matter Fused 1 | . . . . . . . 1 Heat Flow Errors 1 | . . . . . . . 1 Energy Discharges 1 | . . . . . . . 1 Misfires 1 | . . . . . . . 1 Overload Shots . | . . . . . . . . Overflow Damage 30 | . . . . . . . 30 Projectiles . | . . . . . . . . Explosions 30 | . . . . . . . 30 Melee . | . . . . . . . . Knockbacks . | . . . . . . . . Impact . | . . . . . . . . Kinetic . | . . . . . . . . Secondary . | . . . . . . . . Self-Inflicted Damage 113 | . . . . . . . 113 Shots 4 | . . . . . . . 4 Rammed 7 | . . . . . . . 7 Targets Rammed 8 | . . . . . . . 8 Kicked 1 | . . . . . . . 1 Crushed . | . . . . . . . . Highest Temperature 109 | 27 36 54 30 81 . . 109 Average Temperature 25 | 13 16 24 13 44 . . 33 Received Heat Transfer 582 | . . 18 . 33 . . 531 Siege Activations . | . . . . . . . . Martial Activations . | . . . . . . . . Shielding Activations . | . . . . . . . . Robots Disrupted . | . . . . . . . . Combat Hostiles . | . . . . . . . . Robots Corrupted . | . . . . . . . . Combat Hostiles . | . . . . . . . . Parts Fried 1 | . . . . . . . 1 Impact Corruptions . | . . . . . . . . Robots Melted . | . . . . . . . . Combat Hostiles . | . . . . . . . . Parts Melted . | . . . . . . . . Heat Transferred 977 | 222 74 185 296 . . . 200 Parts Sabotaged . | . . . . . . . . Parts Stolen . | . . . . . . . . Parts Stripped . | . . . . . . . . Power Chain Reactions . | . . . . . . . . Alert | -11 -10 -10 -9 -9 -9 -8 -8 ------- Run | Yrd Mat Min Mat Min Exi Min Mat Maximum Alert Level 1 | . . . . . . . 1 Low Security (%) 97 | 100 100 100 100 100 . 100 90 Level 1 2 | . . . . . . . 9 Level 2 . | . . . . . . . . Level 3 . | . . . . . . . . Level 4 . | . . . . . . . . Level 5 . | . . . . . . . . High Security . | . . . . . . . . Max Security . | . . . . . . . . Peak Influence 357 | 5 60 80 15 87 . . 357 Initial 10 | . . 10 4 . . . . Average 31 | . 27 25 2 44 . . 52 Influence Increases 899 | 10 77 123 22 97 . . 570 Destroy 0b10 Robot/C 400 | . 60 100 . 60 . . 180 Destroy 0b10 Robot/NC 55 | 10 5 . 15 5 . . 20 Destroy Leader 88 | . 12 20 6 10 . . 40 Allied During Kill 3 | . . 3 . . . . . Disable Machine 15 | . . . . . . . 15 Anti-Garrison Action 150 | . . . . . . . 150 Destroy Structure 68 | . . . 1 22 . . 45 Partial Spotted 15 | . . . . . . . 15 Lose Combat Pursuer 105 | . . . . . . . 105 Influence Decreases 572 | 10 50 137 35 80 17 . 243 Entered New Map 43 | . . 17 9 . 17 . . Time Decay 399 | 10 50 120 26 80 . . 113 Lost Part 130 | . . . . . . . 130 Squads Dispatched 7 | . . . . . . . 7 Investigation . | . . . . . . . . Extermination . | . . . . . . . . Reinforcement 4 | . . . . . . . 4 Assault 2 | . . . . . . . 2 Garrison 1 | . . . . . . . 1 Intercept . | . . . . . . . . Searches Triggered . | . . . . . . . . Construction Impeded . | . . . . . . . . Haulers Reinforced . | . . . . . . . . Active Scanning Responses . | . . . . . . . . Cargo Convoy Interrupts . | . . . . . . . . Stealth | -11 -10 -10 -9 -9 -9 -8 -8 --------- Run | Yrd Mat Min Mat Min Exi Min Mat Distress Signals 1 | . . . . . . . 1 Communications Jammed . | . . . . . . . . Distress Signals . | . . . . . . . . Times Spotted 44 | . 5 5 3 3 . . 28 Peak Tracking Total 14 | . 4 3 2 3 . . 14 Tactical Retreats 3 | . . . . . . . 3 Traps | -11 -10 -10 -9 -9 -9 -8 -8 ------- Run | Yrd Mat Min Mat Min Exi Min Mat Traps Triggered . | . . . . . . . . Indirectly . | . . . . . . . . Trap Hack Attempts . | . . . . . . . . Triggered . | . . . . . . . . Disarmed . | . . . . . . . . Reprogrammed . | . . . . . . . . Reused . | . . . . . . . . Traps Extracted . | . . . . . . . . Installed . | . . . . . . . . Triggered . | . . . . . . . . Machines | -11 -10 -10 -9 -9 -9 -8 -8 ---------- Run | Yrd Mat Min Mat Min Exi Min Mat Machines Disabled 2 | . . . . . . . 2 Max in Single Turn 2 | . . . . . . . 2 Garrison Access 1 | . . . . . . . 1 Machines Repaired . | . . . . . . . . Machines Dismantled . | . . . . . . . . Machines Sabotaged . | . . . . . . . . Overloaded Fab Kills . | . . . . . . . . Hacking | -11 -10 -10 -9 -9 -9 -8 -8 --------- Run | Yrd Mat Min Mat Min Exi Min Mat Machines Accessed 8 | . 3 . 1 . 3 . 1 Terminals 2 | . 2 . . . . . . Fabricators . | . . . . . . . . Repair Stations 1 | . . . . . . . 1 Recycling Units 1 | . 1 . . . . . . Scanalyzers 1 | . . . 1 . . . . Garrison Access . | . . . . . . . . Total Hacks 13 | . 5 . 1 . 6 . 1 Successful 11 | . 5 . . . 6 . . Failed 2 | . . . 1 . . . 1 Catastrophic . | . . . . . . . . Database Lockouts . | . . . . . . . . Manual 1 | . . . . . 1 . . Terminals 3 | . 3 . . . . . . Fabricators . | . . . . . . . . Repair Stations 1 | . . . . . . . 1 Recycling Units 2 | . 2 . . . . . . Scanalyzers 1 | . . . 1 . . . . Garrison Access . | . . . . . . . . Terminal Hacks 9 | . 3 . . . 6 . . Record 7 | . 2 . . . 5 . . Locate Traps 1 | . 1 . . . . . . Proto ID Catalog 1 | . . . . . 1 . . Fabricator Hacks . | . . . . . . . . Repair Station Hacks . | . . . . . . . . Recycling Unit Hacks 2 | . 2 . . . . . . Report Inventory 1 | . 1 . . . . . . Retrieve Matter 1 | . 1 . . . . . . Scanalyzer . | . . . . . . . . Garrison Access Hacks . | . . . . . . . . Unauthorized Hacks . | . . . . . . . . Terminals . | . . . . . . . . Fabricators . | . . . . . . . . Repair Stations . | . . . . . . . . Recycling Units . | . . . . . . . . Scanalyzers . | . . . . . . . . Garrison Access . | . . . . . . . . Data Cores Recovered . | . . . . . . . . Used . | . . . . . . . . Hacking Detections 1 | . 1 . . . . . . Full Trace Events . | . . . . . . . . Feedback Events . | . . . . . . . . Feedback Blocked . | . . . . . . . . Robot Schematics Acquired . | . . . . . . . . Robots Built . | . . . . . . . . Authchips . | . . . . . . . . Time . | . . . . . . . . Total Robot Build Rating . | . . . . . . . . Part Schematics Acquired . | . . . . . . . . Parts Built . | . . . . . . . . Authchips . | . . . . . . . . Time . | . . . . . . . . Total Part Build Rating . | . . . . . . . . Parts Repaired . | . . . . . . . . Time . | . . . . . . . . Parts Recycled . | . . . . . . . . Recycled Matter . | . . . . . . . . Retrieved Matter . | . . . . . . . . Retrieved Components . | . . . . . . . . Parts Scanalyzed . | . . . . . . . . Part Schematics Acquired . | . . . . . . . . Parts Damaged . | . . . . . . . . Bothacking | -11 -10 -10 -9 -9 -9 -8 -8 ------------ Run | Yrd Mat Min Mat Min Exi Min Mat Used RIF Installer . | . . . . . . . . Robots Hacked . | . . . . . . . . Non-combat . | . . . . . . . . Combat . | . . . . . . . . Robot Hacks Applied . | . . . . . . . . Relay Couplers Released 3 | . . . . . . . 3 Machine Destruction 3 | . . . . . . . 3 Fabnet Peak Effective % . | . . . . . . . . Robots Rewired . | . . . . . . . . Allies Hacked . | . . . . . . . . Hacks Repelled . | . . . . . . . . Allies | -11 -10 -10 -9 -9 -9 -8 -8 -------- Run | Yrd Mat Min Mat Min Exi Min Mat Total Allies 1 | . . 1 . . . . . Largest Group 1 | . . 1 1 . . . . Highest-Rated Group 31 | . . 31 31 . . . . Highest-Rated Ally 31 | . . 31 31 . . . . Total Orders . | . . . . . . . . Ally Attacks 7 | . . 7 . . . . . Total Damage 104 | . . 104 . . . . . Kills . | . . . . . . . . Allies Corrupted . | . . . . . . . . Allies Melted . | . . . . . . . . Intel | -11 -10 -10 -9 -9 -9 -8 -8 ------- Run | Yrd Mat Min Mat Min Exi Min Mat Active Infowar (turns) 1799 | 73 141 344 157 198 446 23 417 Optics 1620 | . 35 344 157 198 446 23 417 Terrain 1190 | 73 141 344 157 198 277 . . Seismic 437 | . . . 34 198 205 . . Robot Analysis Total . | . . . . . . . . Derelict Logs Recovered 2 | . . 1 . 1 . . . Drone Launches . | . . . . . . . . Drone Recoveries . | . . . . . . . . Exploration | -11 -10 -10 -9 -9 -9 -8 -8 ------------- Run | Yrd Mat Min Mat Min Exi Min Mat Turns Passed 1844 | 117 141 344 157 198 446 24 417 Spaces Moved 2199 | 73 97 258 175 331 851 42 372 Core 51 | 14 . . . . . . 37 Treads . | . . . . . . . . Legs 467 | 59 97 258 25 . . . 28 Wheels . | . . . . . . . . Hover 1681 | . . . 150 331 851 42 307 Flight . | . . . . . . . . Fastest Speed 48 | 50 120 120 52 52 52 52 48 Average Speed 67 | 106 120 120 62 52 52 52 60 Slowest Speed 350 | 120 120 120 140 52 52 52 350 Overloaded Moves . | . . . . . . . . Propulsion Burnouts . | . . . . . . . . Robots Hopped . | . . . . . . . . Potential Cave-ins . | . . . . . . . . Cave-ins Triggered . | . . . . . . . . Exploration Rate (%) 34 | 4 25 47 22 46 94 11 25 Regions Visited 7 Branch Regions 4 Pre-discovered Areas 1 | . . . . . 1 . . Known Exits Taken 3 | . . 1 . . 1 1 . Unknown Exits Taken 4 | 1 1 . 1 1 . . . Scrap Searched 2 | . . . . 1 . 1 . Spaces Dug . | . . . . . . . . Terrain Destroyed 88 | . . . . 35 . . 53 Melee . | . . . . . . . . Projectile 4 | . . . . . . . 4 AOE 84 | . . . . 35 . . 49 Terrain Rammed . | . . . . . . . . Walls Destroyed . | . . . . . . . . Machines Disabled . | . . . . . . . . Actions | -11 -10 -10 -9 -9 -9 -8 -8 --------- Run | Yrd Mat Min Mat Min Exi Min Mat Total 2469 | 95 111 278 211 348 853 43 530 Wait 130 | . . 7 . 11 . . 112 Move 2192 | 72 96 257 174 330 850 41 372 Hop . | . . . . . . . . Pick Up 26 | 8 4 1 7 1 . . 5 Fast Attach 8 | 2 . . 4 . 1 1 . Attach 14 | 5 1 . . . . . 8 Detach . | . . . . . . . . Swap 17 | . 1 2 9 1 1 . 3 Drop 22 | . 3 3 11 1 1 1 2 Fire 52 | 8 6 8 6 4 . . 20 Melee . | . . . . . . . . Ram 7 | . . . . . . . 7 Kick 1 | . . . . . . . 1 Crush . | . . . . . . . . Escape Stasis . | . . . . . . . . Rewire . | . . . . . . . . Trap . | . . . . . . . . Miscellaneous . | . . . . . . . . Route ------- -11/Scrapyard -10/Materials -10/Mines -9/Materials -9/Mines -9/Exiles (discovered 2 exits: *Min x2) -8/Mines -8/Materials (discovered 1 exit: Fac) History --------- Turn | Location | Event 6 | -11/Scrapyard | Discovered new exit (range 14) 118 | -11/Scrapyard | Entered Materials 237 | -10/Materials | Discovered new exit (range 11) 259 | -10/Materials | Entered Mines 266 | -10/Mines | Met a Derelict bent on vengeance 302 | -10/Mines | Build established: Mutant 390 | -10/Mines | Received a Mining Laser from a helpful Derelict 466 | -10/Mines | Identified exit to Materials 603 | -10/Mines | Entered Materials 603 | -9/Materials | Accompanied by 1 ally 603 | -9/Materials | Evolved 2 slots: Propulsion x1, Utility x1 739 | -9/Materials | Discovered new exit (range 14) 760 | -9/Materials | Entered Mines 846 | -9/Mines | YI-UF0 nonchalantly dropped a Grenade Launcher on the ground 903 | -9/Mines | Assembled infested the area 949 | -9/Mines | Learned 2 Materials zone layouts 956 | -9/Mines | Discovered new exit (range 5) 958 | -9/Mines | Entered Exiles 968 | -9/Exiles | Discovered new exit (range 14) 982 | -9/Exiles | Met 8R-AWN 992 | -9/Exiles | Met EX-HEX 1028 | -9/Exiles | Met EX-DEC 1041 | -9/Exiles | Learned location of Zion (-6) 1069 | -9/Exiles | Visited The Gauntlet 1139 | -9/Exiles | Met EX-BIN 1146 | -9/Exiles | Aligned with FarCom system 1146 | -9/Exiles | Given EX-Vault access code 1161 | -9/Exiles | Opened EX-Vault 1163 | -9/Exiles | Found Prototype Device 1163 | -9/Exiles | Identified Skeleton Box 1187 | -9/Exiles | Warned to stay clear of 0b10 Research branches 1224 | -9/Exiles | Discovered new exit (range 15) 1249 | -9/Exiles | Identified exit to Mines 1404 | -9/Exiles | Left Exiles lab with Skeleton Box 1404 | -9/Exiles | Entered Mines 1416 | -8/Mines | Discovered new exit (range 13) 1426 | -8/Mines | Identified exit to Materials 1428 | -8/Mines | Entered Materials 1428 | -8/Materials | Evolved 2 slots: Power x1, Propulsion x1 1429 | -8/Materials | Identified exit to Factory 1778 | -8/Materials | Lost 6 parts (1p4n1w) 1840 | -8/Materials | Core integrity fell below 50% 1845 | -8/Materials | Core integrity fell below 20% 1845 | -8/Materials | Destroyed by G-47 Trooper with Particle Gun Last Messages --------------- 01807_ Relay Coupler [Grunt] tumbles out of Garrison Access. 01807_ Relay Coupler [NC] tumbles out of Garrison Access. 01808_ Kicked R-06 Scavenger. 01809_ Imp. EM Shotgun destroyed. 01809_ Aluminum Leg destroyed. 01809_ Slammed into R-06 Scavenger. 01811_ G-47 Trooper suffers critical hit (Burn). 01817_ Dropped Imp. Assault Rifle. 01828_ Acquired EM Pulse Cannon. 01837_ EM Pulse Cannon destroyed. 01837_ Knocked back. 01838_ Acquired 3 matter. 01838_ Lgt. Ion Engine destroyed. 01839_ Critical hit (Burn: +37). 01841_ Particle Gun destroyed. 01844_ System corrupted: Matter fused (-5). 01844_ Slammed into X-57 Shotgunner. 01844_ Knocked back. Map ----- +----------------------------------------------------+ | | | | | | | | | ?????????????????????????????????????????????????? | | ?????????????????????????????????????????????????? | | ?????????????????????????????????????????????????? | | ?????????????????????????????????????????????????? | | ?????????????????????????????????????????????????? | | ?????????????????????????????????????????????????? | | ?????????????????????????????????????????????????? | | ?????????????????????????????????????????????????? | | ?????????????????????????????????????????????????? | | ?????????????????????????????????????????????????? | | ???????????????????????????????????Y?????????????? | | ?????????????????????????????????????????????????? | | ?????????????????????????????????????????????????? | | ????????????????????###??????????????????????????? | | ????????????????????# ###########????????????????? | | ????????????????????# #?? ?????????????? | | ????????????????????# !!! #?? #????????????? | | ????????????????????# """ !!! #? #????????????? | | ????????????????????#Y""" !!! #? #????????????? | | ????????????????????# """ gH #? #????????????? | | ????????????????????# % g g #? #????????????? | | ????????????????????# @xg ## ##???????????? | | ????????????????????########g#+## ##### #??? | | ???????????gg?????########## T ???? | | ??????????????????# ! #g ""????? | | ??????????????????# """ # ### ##### #??? | | ??????????????????# """ # ###"x###???????????? | | ??????????????????# """ # ## #???????????? | | ??????????????????# + ## #???????????? | | ??????????????????# """ # ## #???????????? | | ??????????????????# """ g # ### #???????????? | | ??????????????????# """ # #?# #???????????? | | ??????????????????# #Y#?# #???????????? | | ??????????????????#######/##g#?# #???????????? | | ????????????????????????# #?# #???????????? | | ??????????????########??# #?# #???????????? | | ?????????????## #??# #?# % ###########?? | | ????????????##" #### ### # #?? | | ???????????## " + [ + # #?? | | ???????????# " "### ####### #?? | | ???? #####"" #??# ####### #?? | | ????? " #??# % %+ !| #?? | | ?????????# "#### ############ %! % #?? | | ?????????# =%/ ## #??????????# != #?? | | ?????????# * %/ #??????????# = #?? | | ?????????# ! ####??########## # # ##?? | +----------------------------------------------------+ Best States ------------- Heat Dissipation 31 Energy Generation 12 Energy Capacity 265 Matter Stores 300 Matter Capacity 300 Sight Range 20 Terrain Scan Range 16 Terrain Scan Density 10 Evasion (%) 55 Item Schematics ----------------- None Robot Schematics ------------------ None Fabricated ------------ Nothing Repaired ---------- Nothing Alien Tech Used ----------------- None Achievements -------------- None Challenges ------------ None Game ------ Seed BiomechanicalStealthCloak Manual? 0 Play Time 00:30:36 Cumulative 87.0 hours Start 2025.09.29 @ 17:12:48 End 2025.09.29 @ 17:42:43 Sessions 1 Manual Loads 0 Difficulty Rogue Special Mode None Game No. 74 Rogue 60 Adventurer 14 Explorer 0 Win Type - Total 0 Types 0/0/0/0/0/0/0/0/0/0 Lore% 29 Gallery% 37 Achievement% 29 Wizard Run 0 Options --------- Layout 1 ASCII 0 Keyboard 0 Movement Mouse Keybinds 0 Fullscreen 0 Font 20/Smallcaps Map View 50x35 Zoom Use 0% Tactical HUD 1 Map Filters NONE Filters NONE Steam 1 RUN: 555a54bc-0d76-4fd7-92d1-1a43b5af8e8e